{"text_format":"3","workbook":"xlsx","n_sheets":4,"sheets":["Сентябрь","Октябрь","Ноябрь","Декабрь"],"read":"whole","date_system":"1900"}

{"sheet":"Сентябрь","index":0,"n_rows":21,"n_cols":27,"rows_kept":21}
[{"$nulls":6},"Единый график проведения оценочных процедур на 1 полугодие 2025-2026 уч.года"]
["Классы",1,2,3,4,5,6,8,9,10,11,12,13,15,16,17,18,19,20,22,23,24,25,26,27,29,30]
[{"$f":"Декабрь!A3","v":2},{"$nulls":13},"Р ТКР",null,"М ТКР"]
[{"$f":"Декабрь!A4","v":3},{"$nulls":12},"М ТКР",null,null,"Р ТКР"]
[{"$f":"Декабрь!A5","v":4},{"$nulls":10},"М ТКР",{"$nulls":7},"Р ТКР"]
[{"$f":"Декабрь!A6","v":5},{"$nulls":7},"Р САКР",{"$nulls":6},"М САКР"]
[{"$f":"Декабрь!A7","v":"6а"},{"$nulls":8},"Р ТКР"]
[{"$f":"Декабрь!A8","v":"6б"},{"$nulls":9},"Р ТКР"]
[{"$f":"Декабрь!A9","v":7}]
[{"$f":"Декабрь!A10","v":8}]
[{"$f":"Декабрь!A11","v":9},{"$nulls":11},"Х ТКР"]
[]
[]
["Сокращение названий форм оценочных процедур"]
[{"$nulls":7},"Р","русский язык",null,"Ф","физика",null,"Англ 1, 2","английский язык (1,2 подгруппы)"]
["Всероссийские проверочные работы","ВПР",{"$nulls":5},"Л","литература",null,"Х","химия",null,"ОБЗР","ОБЗР"]
["Основной государственный экзамен","ОГЭ",{"$nulls":5},"М","математика",null,"Инф","информатика",null,"ВиС"," вероятность и статистика"]
["Стартовая административная контрольная работа","САКР",{"$nulls":5},"Ал","алгебра",null,"ИЗО","изо",null,"О","окружающий мир"]
["Текущая контрольная работа","ТКР",{"$nulls":5},"Гм","геометрия",null,"РТ","родной (татарский) язык",null,"Общ","обществознание"]
["Административная контрольная работа","АКР",{"$nulls":5},"Г","география",null,"И","история",null,"ГЯ","Гос (тат) яз"]
["Промежуточная аттестация","ПА"]

{"sheet":"Октябрь","index":1,"n_rows":21,"n_cols":23,"rows_kept":21}
[{"$nulls":6},"Единый график проведения оценочных процедур на 1 полугодие 2025-2026 уч.года"]
["Классы",1,2,3,4,6,7,8,9,10,11,13,14,15,16,17,18,20,21,22,23,24,25]
[{"$f":"Декабрь!A3","v":2},{"$nulls":11},"М АКР",null,"Р АКР"]
[{"$f":"Декабрь!A4","v":3},{"$nulls":17},"М АКР","Р АКР"]
[{"$f":"Декабрь!A5","v":4},{"$nulls":7},"А ТКР"]
[{"$f":"Декабрь!A6","v":5},{"$nulls":13},"Р АКР",{"$nulls":4},"М АКР"]
[{"$f":"Декабрь!A7","v":"6а"},{"$nulls":3},"М ТКР",{"$nulls":9},"Р АКР"]
[{"$f":"Декабрь!A8","v":"6б"},null,null,"М ТКР",{"$nulls":11},"Р АКР",null,null,"РТ ТКР"]
[{"$f":"Декабрь!A9","v":7},{"$nulls":13},"Инф ТКР",{"$nulls":3},"Р АКР","И АКР","Ал АКР"]
[{"$f":"Декабрь!A10","v":8},null,"Ал ТКР",{"$nulls":15},"Инф АКР","Р АКР",null,"Х АКР"]
[{"$f":"Декабрь!A11","v":9},{"$nulls":17},"Р АКР"]
[]
[]
["Сокращение названий форм оценочных процедур"]
[{"$nulls":7},"Р","русский язык",null,"Ф","физика",null,"Англ 1, 2","английский язык (1,2 подгруппы)"]
["Всероссийские проверочные работы","ВПР",{"$nulls":5},"Л","литература",null,"Х","химия",null,"ОБЗР","ОБЗР"]
["Основной государственный экзамен","ОГЭ",{"$nulls":5},"М","математика",null,"Инф","информатика",null,"ВиС","вероятность и статистика "]
["Стартовая административная контрольная работа","САКР",{"$nulls":5},"Ал","алгебра",null,"ИЗО","изо",null,"О","окружающий мир"]
["Текущая контрольная работа","ТКР",{"$nulls":5},"Гм","геометрия",null,"РТ","родной (татарский) язык",null,"Общ","обществознание"]
["Административная контрольная работа","АКР",{"$nulls":5},"Г","география",null,"И","история",null,"ГЯ","Гос (тат) яз"]
["Промежуточная аттестация","ПА"]

{"sheet":"Ноябрь","index":2,"n_rows":21,"n_cols":21,"rows_kept":21}
[{"$nulls":6},"Единый график проведения оценочных процедур на 1 полугодие 2025-2026 уч.года"]
["Классы",7,8,10,11,12,13,14,15,17,18,19,20,21,22,24,25,26,27,28,29]
[{"$f":"Декабрь!A3","v":2}]
[{"$f":"Декабрь!A4","v":3}]
[{"$f":"Декабрь!A5","v":4},{"$nulls":3},"Р ТКР",{"$nulls":14},"М ТКР"]
[{"$f":"Декабрь!A6","v":5},{"$nulls":10},"И ТКР"]
[{"$f":"Декабрь!A7","v":"6а"},{"$nulls":15},"Р ТКР"]
[{"$f":"Декабрь!A8","v":"6б"},{"$nulls":15},"Р ТКР"]
[{"$f":"Декабрь!A9","v":7}]
[{"$f":"Декабрь!A10","v":8}]
[{"$f":"Декабрь!A11","v":9},null,null,"Ал ТКР","Х ТКР"]
[]
[]
["Сокращение названий форм оценочных процедур"]
[{"$nulls":7},"Р","русский язык",null,"Ф","физика",null,"Англ 1, 2","английский язык (1,2 подгруппы)"]
["Всероссийские проверочные работы","ВПР",{"$nulls":5},"Л","литература",null,"Х","химия",null,"ОБЗР","ОБЗР"]
["Основной государственный экзамен","ОГЭ",{"$nulls":5},"М","математика",null,"Инф","информатика",null,"ВиС","вероятность и статистика"]
["Стартовая административная контрольная работа","САКР",{"$nulls":5},"Ал","алгебра",null,"ИЗО","изо",null,"О","окружающий мир"]
["Текущая контрольная работа","ТКР",{"$nulls":5},"Гм","геометрия",null,"РТ","родной (татарский) язык",null,"Общ","обществознание"]
["Административная контрольная работа","АКР",{"$nulls":5},"Г","география",null,"И","история",null,"ГЯ","Гос (тат) яз"]
["Промежуточная аттестация","ПА"]

{"sheet":"Декабрь","index":3,"n_rows":21,"n_cols":26,"rows_kept":21}
[{"$nulls":6},"Единый график проведения оценочных процедур на 1 полугодие 2025-2026 уч.года"]
["Классы",1,2,3,4,5,6,8,9,10,11,12,13,15,16,17,18,19,20,22,23,24,25,26,27,29]
[2,{"$nulls":15},"Р АКР","ГЯ/РТ АКР",null,null,"М АКР"]
[3,{"$nulls":15},"РТ АКР","ГЯ ТКР",{"$nulls":3},"Р АКР","М АКР"]
[4,{"$nulls":10},"О АКР",{"$nulls":3},"ГЯ/РТ АКР"]
[5,null,"Р ТКР",{"$nulls":11},"Англ АКР",{"$nulls":4},"Р АКР",null,"ГЯ/РТ ТКР","И АКР"]
["6а",null,null,"М ТКР",{"$nulls":10},"Р АКР","Англ ТКР",{"$nulls":3},"М АКР",null,{"$f":"$V$6","v":"ГЯ/РТ ТКР"},"И АКР"]
["6б",{"$nulls":3},"М ТКР",{"$nulls":8},"Р АКР","РТ ТКР",{"$nulls":3},"ГЯ ТКР",null,"М АКР","И АКР"]
[7,{"$nulls":8},"Гм ТКР",{"$nulls":6},"Англ АКР",{"$nulls":3},"Р АКР","РТ/ГЯ ТКР"]
[8,{"$nulls":5},"ГЯ АКР",{"$nulls":4},"Гм АКР",{"$nulls":3},"Р АКР","РТ АКР"]
[9,{"$nulls":8},"ГЯ ТКР","Ал ТКР","Гм АКР","И АКР",null,"Англ ТКР",null,"Р АКР","Ф ТКР",null,"РТ ТКР"]
[]
[]
["Сокращение названий форм оценочных процедур"]
[{"$nulls":7},"Р","русский язык",null,"Ф","физика",null,"Англ 1, 2","английский язык (1,2 подгруппы)"]
["Всероссийские проверочные работы","ВПР",{"$nulls":5},"Л","литература",null,"Х","химия",null,"ОБЗР","ОБЗР"]
["Основной государственный экзамен","ОГЭ",{"$nulls":5},"М","математика",null,"Инф","информатика",null,"ВиС","вероятность и статистка "]
["Стартовая административная контрольная работа","САКР",{"$nulls":5},"Ал","алгебра",null,"ИЗО","изо",null,"О","окружающий мир"]
["Текущая контрольная работа","ТКР",{"$nulls":5},"Гм","геометрия",null,"РТ","родной (татарский) язык",null,"Общ","обществознание"]
["Административная контрольная работа","АКР",{"$nulls":5},"Г","география",null,"И","история",null,"ГЯ","Гос (тат) яз"]
["Промежуточная аттестация","ПА"]